Workbook

Sheet Needs Chart
B4: Insurance to Income Ratio Chart*
B5: HOW MUCH LIFE INSURANCE IS ENOUGH? | G5: ='Life Chart Worksheet'!C7 -> Mr. Joe Client | L5: (check box hides/unhides the "Total Life Insurance" amounts)
B7: Total Life Insurance | F7: Monthly Income
B9: 100000 | F9: 400
B10: 200000 | F10: 850
B11: 250000 | F11: 1000
B12: 300000 | F12: 1300
B13: 350000 | F13: 1500
B14: 400000 | F14: 1700
B15: 450000 | F15: 1900
B16: 500000 | F16: 2100
B17: 550000 | F17: 2300
B18: 600000 | F18: 2550
B19: 650000 | F19: 2750
B20: 700000 | F20: 3000
B21: 800000 | F21: 3400
B22: 900000 | F22: 3800
B23: 1000000 | F23: 4250
B24: 1500000 | F24: 6370
B25: 2000000 | F25: 8500
B26: 3000000 | F26: 12500
B27: 5000000 | F27: 21250
B28: 10000000 | F28: 42500
B30: * This chart illustrates a potential monthly income, provided the initial capital amount is not used. It calculates the approximate amount of monthly net after-tax income that an insurance policy face amount (or capital amount) would provide to a surviving spouse per thirty-day period. It assumes 1) investing the total amount of insurance proceeds, 2) averaging a 6% investment yield, with 3) an average 15% tax liability.
B37: Presented to: | D37: Mr. Joe Client | H37: =TODAY() -> 2019-07-15
I39: 12/2018mlm
A42: Sheet Protection Password - "LIFE"
B45: "

Sheet Life Chart Worksheet
B2: LAYERING INSURANCE FOR EFFECTIVENESS (L.I.F.E.) | O2: LAYERING INSURANCE FOR EFFECTIVENESS (L.I.F.E.)
C3: The Professional Method for Balancing Life Protection Needs with Policy Costs | J3: =TODAY() -> 2019-07-15
C5: Client Case Details | S5: =TODAY() -> 2019-07-15 | T5: Client: | U5: =C7 -> Mr. Joe Client
B7: 1- | C7: Mr. Joe Client | E7: Client name?
B8: 2- | C8: 30 | E8: Client age nearest birthday?
B9: 3- | C9: 6000 | E9: Monthly income needed to sustain life for surviving dependent/s? (see Needs Chart)
B10: 4- | C10: 1 & 4 | E10: Dependent children's ages?
B11: 5- | C11: 2019 | E11: Initial year of coverage inception?
B12: 6- | C12: next 20 years | E12: What are the 'critical years' (before dependents move out, income producing years, etc.)?
B13: 7- | C13: INCOME, MTG | E13: Coverage uses: income replacement, pay off mortgage/debts, education, retirement, etc.?
C15: FACE AMOUNT | E15: POLICY TERM | G15: POLICY FACE | H15: POLICY COST | I15: ALL POLICIES | J15: TERM
B16: Pol 1 | C16: 0 | E16: 10 Year Policy | G16: =C16 -> 0 | H16: 0 | I16: =H16+H17+H18+H19 -> 85.97 | J16: for 10 yrs
B17: Pol 2 | C17: 0 | E17: 15 Year Policy | G17: =C17 -> 0 | H17: 0 | I17: =H17+H18+H19 -> 85.97 | J17: for 15 yrs
B18: Pol 3 | C18: 500000 | E18: 20 Year Policy | G18: =C18 -> 500000 | H18: 21.17 | I18: =H18+H19 -> 85.97 | J18: for 20 yrs
B19: Pol 4 | C19: 1000000 | E19: 30 Year Policy | G19: =C19 -> 1000000 | H19: 64.8 | I19: =H19 -> 64.8 | J19: for 30 yrs
C21: COVERAGE TERMS FOR SPECIFIC TERMS | H21: Initial Monthly Cost
C22: 10 Year | D22: 15 Year | E22: 20 Year | F22: 30 Year | H22: =SUM(H16:H19) -> 85.97
C23: =SUM(C32:C35) -> 1500000 | D23: =SUM(D32:D35) -> 1500000 | E23: =SUM(E32:E35) -> 1500000 | F23: =SUM(F32:F35) -> 1000000
C24: Estimated Monthly Income Provided for Specific Years | Q24: Estimated Monthly Income for Specific Years* | V24: * Estimated income achieved when: 1) investing the full life insurance policy (ies) proceeds; 2) at an estimated 6% average rate of return; 3) and, at an estimated average tax rate of 15%.
C25: =C23*0.06*0.85/12 -> 6375 | D25: =D23*0.06*0.85/12 -> 6375 | E25: 6375 | F25: 4250 | Q25: 10 years | R25: 15 years | S25: 20 years | T25: 30 years
Q26: =C25 -> 6375 | R26: =D25 -> 6375 | S26: =E25 -> 6375 | T26: =F25 -> 4250
C27: Protection Password | D27: "LIFE" | E27: input cells | J27: 12/20/2018mlm/wch | Q27: Monthly Costs per Policy Terms - Locked In**
Q28: =I16 -> 85.97 | R28: =I17 -> 85.97 | S28: =I18 -> 85.97 | T28: =I19 -> 64.8
C29: Graph calculation cells
C30: Coverage Needs and Coverage Years | G30: Total Policy Face Amount | N30: ** Policy premiums are determined by current health status, underwriting guidelines, policy face amounts, and policy terms.
C31: 10 years | D31: 15 years | E31: 20 years | F31: 30 years | I31: 10 Years | N31: Once the client is qualified, the rates are locked in for the term of the policy as long as premiums are kept current.
B32: Pol 1 | C32: =$C$16 -> 0 | G32: =C32 -> 0 | I32: 15 Years | W32: =J27 -> 12/20/2018mlm/wch
B33: Pol 2 | C33: =$C$17 -> 0 | D33: =$C$17 -> 0 | G33: =C33 -> 0 | I33: 20 Years
B34: Pol 3 | C34: =$C$18 -> 500000 | D34: =$C$18 -> 500000 | E34: =$C$18 -> 500000 | G34: =C34 -> 500000 | I34: 30 Years
B35: Pol 4 | C35: =$C$19 -> 1000000 | D35: =$C$19 -> 1000000 | E35: =$C$19 -> 1000000 | F35: =$C$19 -> 1000000 | G35: =C35 -> 1000000

Sheet Life Chart
B2: LAYERING INSURANCE FOR EFFECTIVENESS (L.I.F.E.)
D4: =TODAY() -> 2019-07-15 | H4: Age: | I4: ='Life Chart Worksheet'!C8 -> 30 | N4: LIFE
B25: Estimated Monthly Income Provided for Specific Years* | E25: 10 Years | F25: 15 Years | G25: 20 Years | H25: 30 Years | I25: ='Life Chart Worksheet'!C9 -> 6000 | J25: - initial mo. income needed
E26: ='Life Chart Worksheet'!C25 -> 6375 | F26: ='Life Chart Worksheet'!D25 -> 6375 | G26: ='Life Chart Worksheet'!E25 -> 6375 | H26: ='Life Chart Worksheet'!F25 -> 4250 | I26: ='Life Chart Worksheet'!C10 -> 1 & 4 | J26: - dependent children/s ages
B27: Monthly Cost / Policy Term** | E27: ='Life Chart Worksheet'!I16 -> 85.97 | F27: ='Life Chart Worksheet'!I17 -> 85.97 | G27: ='Life Chart Worksheet'!I18 -> 85.97 | H27: ='Life Chart Worksheet'!I19 -> 64.8 | I27: ='Life Chart Worksheet'!C12 -> next 20 years | J27: - the 'critical years'
I28: ='Life Chart Worksheet'!C13 -> INCOME, MTG | J28: - coverage purpose
B29: Once the client is qualified, the rates are locked in for the term of the policy as long as premiums are kept current.
B30: * Estimated mo. income achieved by: 1) investing full insurance policy/ies proceeds; 2) at 6% average return; and 3) at 15% average tax rate.
B31: ** Policy premiums are determined by current health status, underwriting guidelines, policy face amounts, and policy terms. | K31: ='Life Chart Worksheet'!J27 -> 12/20/2018mlm/wch

Sheet Needs Chart Calculator
B2: INCOME TO INSURANCE CALCULATOR PROTECTING YOUR MOST VALUABLE ASSET
B3: "How Much is Enough?" | D3: ='Life Chart Worksheet'!C7 -> Mr. Joe Client
B4: Your Most Valuable Asset: the ability to generate an ongoing income stream for your family.
B6: The Sum of Cash Required to Achieve a Specific Monthly Income
C8: EXAMPLE: Your Average Annual Income | D8: 95000
C9: Current Monthly Income | D9: =D8/12 -> 7916.666667
C10: Earnings Over 20 Year Career | D10: =D8*20 -> 1900000
C11: Earnings Over 30 Year Career | D11: =D8*30 -> 2850000
C12: Earnings Over 45 Year Career | D12: =D8*45 -> 4275000
C13: It makes sense that your ability to generate ongoing income is your most valuable asset.
C14: Monthly Income Needed | D14: 8500
C15: Average Rate of Return Assumption | D15: 0.06
C16: Average Tax Rate Assumption | D16: 0.15
C17: Existing Life Insurance In-Force (and other financial resources) | D17: 0
C19: Total Lump Sum Cash Required | D19: =D14*12/$D$15/(1-$D$16) -> 2000000
C20: Net Lump Sum Cash Needed (life insurance) (in-force subtracted from gross lump sum needed) | D20: =D19-D17 -> 2000000
C21: After identifying the Total Lump Sum Cash required to generate the Monthly Income Needed, existing resources (life insurance, savings, or other assets) can be deducted to determine the Net Lump Sum cash needed.
C22: Annual Savings from your Auto/Home | D22: 225.75
C23: Monthly Amount Saved | D23: =D22/12 -> 18.8125
C24: Monthly Amount You Can Contribute to Protect Your Most Valuable Asset | D24: 0
C25: Total Monthly Amount Being Contributed to Protect Your Most Valuable Asset | D25: =D24+D23 -> 18.8125
B27: IMPORTANT DISCLOSURE – The calculations in this chart are for illustration purposes only and are not intended to predict returns or represent actual results. The purpose of this chart is to illustrate a potential monthly income when a lump sum capital remains intact and is NOT reduced. It calculates the approximate amount of lump sum capital or life insurance proceeds needed to provide the surviving spouse / family with a desired amount of after-tax, net monthly income. The illustration assumes the following: 1) a specific amount of insurance proceeds, 2) those proceeds achieving an average hypothetical return, and 3) those proceeds also assuming an average hypothetical tax liability. Specific results will vary depending on the actual initial capital amount invested, the returns earned and tax liabilities. THIS CHART IS FOR ILLUSTRATION PURPOSES ONLY.
B28: For: | C28: ='Life Chart Worksheet'!C7:D7 -> Mr. Joe Client | D28: =TODAY() -> 2019-07-15
B29: Agent: | C29: Mark Miletello | D29: 858.000.0000 name@youremail.com
A30: NOTES:
A32: . | B32: ML Approval #201104595 | E32: ='Life Chart'!K31 -> 12/20/2018mlm/wch
B34: Worksheet Protection Password = "LIFE"
B35: Input cells
